Cogmind - Beta 17 @@@ ROGUE MODE // 2026.07.14 @ 00:41:19 Player: TheSkyeDoctor Result: Destroyed by S-27 Virus with Autogun Performance ------------- Evolutions (3) 1500 Regions Visited (5) 1000 Robots Destroyed (93) 465 Value Destroyed (2602) 2602 Prototype IDs (3) 60 Alien Tech Used (0) 0 Bonus (218) 218 TOTAL SCORE: 5845 Bonus ------- High Alert Combat Kills 218 Cogmind --------- Core Integrity 0/700 Matter 300/300 Energy 100/100 System Corruption 0% Temperature Cool (0) Movement Core (50) Location -7/Lower Caves Parts ------- > --- POWER (1) -------- (None) > --- PROPULSION (4) --- (None) > --- UTILITY (4) ------ Advanced Terrain Scan Processor Melee Analysis Suite > --- WEAPON (4) ------- (None) > --- INVENTORY (5) ---- Seismic Detector Hacking Suite Ion Cannon Plasma Cutter Peak State ------------ > --- POWER ------------ Heavy Ion Engine > --- PROPULSION ------- Light Treads Armored Treads VTOL Module VTOL Module > --- UTILITY ---------- Small Storage Unit Improved Terrain Scanner Terrain Scan Processor Melee Analysis Suite > --- WEAPON ----------- Ion Cannon Power Maul Power Maul Katana > --- INVENTORY -------- Compact Wheel Flight Unit VTOL Module Seismic Detector Hacking Suite Plasma Cutter [Rating: 35] Favorites ----------- Power Ion Engine Engine Ion Engine Power Core Light Nuclear Core Propulsion Light Treads Treads Light Treads Wheel Compact Wheel Flight Unit VTOL Module Utility Small Storage Unit Device Improved Terrain Scanner Storage Small Storage Unit Processor Improved Targeting Computer Weapon Shotgun Energy Gun Small Laser Energy Cannon Ion Cannon Ballistic Gun Shotgun Ballistic Cannon Heavy Assault Cannon Impact Weapon Power Maul Slashing Weapon Axe Build | -11 -10 -9 -8 -7 -7 ------- Run | Yrd Mat Mat Mat Fac Low Slots Evolved 6 | . . 2 2 2 . Power . | . . . . . . Propulsion 2 | . . . . 2 . Utility 2 | . . . 2 . . Weapon 2 | . . 2 . . . Parts Attached 51 | 7 . 11 22 8 3 Power 6 | 1 . 1 3 . 1 Engine 4 | 1 . 1 1 . 1 Core 2 | . . . 2 . . Reactor . | . . . . . . Propulsion 17 | 2 . 3 5 5 2 Treads 10 | 2 . 3 5 . . Leg . | . . . . . . Wheel 1 | . . . . . 1 Hover . | . . . . . . Flight 6 | . . . . 5 1 Utility 9 | 2 . 1 3 3 . Device 3 | 1 . . 1 1 . Storage 1 | 1 . . . . . Processor 5 | . . 1 2 2 . Hackware . | . . . . . . Protection . | . . . . . . Artifact . | . . . . . . Weapon 19 | 2 . 6 11 . . Energy Gun 6 | 1 . 3 2 . . Energy Cannon 3 | . . 1 2 . . Ballistic Gun 3 | 1 . 2 . . . Ballistic Cannon 1 | . . . 1 . . Launcher . | . . . . . . Special Weapon . | . . . . . . Impact Weapon 4 | . . . 4 . . Slashing Weapon 2 | . . . 2 . . Piercing Weapon . | . . . . . . Special Melee Weapon . | . . . . . . Unidentified Prototypes 3 | . . 1 2 . . Parts Lost 27 | . . 3 12 3 9 Power 6 | . . 1 4 . 1 Propulsion 8 | . . . 2 1 5 Utility 5 | . . . 1 2 2 Weapon 8 | . . 2 5 . 1 Highest Loss Streak 9 | . . 1 3 3 9 To Critical Strikes 1 | . . . . . 1 Average Backups 6 | 2 4 7 7 6 4 Power . | . 1 . . . . Propulsion 2 | . 1 3 3 2 . Utility 2 | . 1 3 1 2 2 Weapon . | . . . . 1 1 Tool/Special . | . . . . . . Unused Backups 6 | . . . 4 . 2 Power . | . . . . . . Propulsion 3 | . . . 3 . . Utility 2 | . . . 1 . 1 Weapon . | . . . . . . Tool/Special 1 | . . . . . 1 Average Slot Usage (%) 89 | . 100 92 92 71 69 Engine 5 | . 14 11 1 7 6 Core 3 | . . . 6 . . Treads 16 | . 28 22 16 1 . Flight 3 | . . . . 25 25 Device 8 | . 14 5 8 5 6 Storage 8 | . 14 11 9 5 . Processor 13 | . . 5 18 16 22 Energy Gun 8 | . 14 16 4 . . Energy Cannon 3 | . . 4 3 1 3 Ballistic Gun 9 | . 14 16 7 . . Ballistic Cannon 1 | . . . 2 . . Impact Weapon 5 | . . . 9 6 2 Slashing Weapon 2 | . . . 4 1 . Peak Build Rating 35 | 7 7 16 31 35 31 Average Rating 18 | 5 7 12 24 24 26 On Entrance 15 | . 7 7 16 31 29 Avg Prop Armor Cover (%) . | . . . . . . Naked Turns . | . . . . . . Heaviest Build 29 | 13 13 22 29 28 18 Greatest Support 40 | 40 40 40 40 40 16 Greatest Overweight (x) 4 | . . . 1 1 4 Average Overweight (x) . | . . . . . . Largest Inventory Capacity 8 | 8 8 8 8 8 5 Average Capacity 7 | 7 8 8 8 7 5 Most Carried 8 | 3 6 8 8 8 5 Average Carried 6 | 2 4 7 7 5 4 Final Capacity 8 | 8 8 8 8 5 5 Final Carried 8 | 3 6 8 8 5 4 Class Distribution -------------------- 45% | Mutant 20% | Scavenger-Skirmisher 12% | Scavenger-Gunner 6% | Scavenger-Mutant 5% | Gunner 4% | Sprinter 4% | Gladiator Dominant Class ---------------- Mutant | -10/Materials Scavenger-Gunner | -9/Materials Scavenger-Skirmisher | -8/Materials Mutant | -7/Factory Mutant | -7/Lower Caves Resources | -11 -10 -9 -8 -7 -7 ----------- Run | Yrd Mat Mat Mat Fac Low Matter Collected 1379 | 287 11 300 651 74 56 Remotely . | . . . . . . Salvage Created 3043 | 151 78 978 1609 74 153 Parts 186 | 13 4 76 86 . 7 Haulers Intercepted 3 | . . 1 2 . . Recyclers Shooed 4 | . . 2 2 . . Parts Field Recycled . | . . . . . . Retrieved Matter . | . . . . . . Parts Self-Destructed 5 | . . . . . 5 Prevented . | . . . . . . Parts Restored . | . . . . . . Kills | -11 -10 -9 -8 -7 -7 ------- Run | Yrd Mat Mat Mat Fac Low Combat Hostiles Destroyed 65 | . 3 22 36 1 3 Melee 6 | . . . 6 . . Guns 32 | . 3 18 11 . . Cannons 22 | . . 3 16 . 3 AOE 2 | . . 1 1 . . Classes Destroyed 13 | 2 2 7 2 . . Worker 5 | . . 2 3 . . Builder 6 | . . 2 4 . . Tunneler 6 | 5 . . 1 . . Hauler 3 | . . 1 2 . . Recycler 1 | 1 . . . . . Operator 6 | . . 2 3 1 . Watcher 1 | . . 1 . . . Swarmer 17 | . 2 7 7 . 1 Grunt 28 | . 1 10 16 . 1 Brawler 3 | . . 1 2 . . Protector 1 | . . . 1 . . Sentry 13 | . . 4 7 1 1 Hunter 3 | . . . 3 . . Best Kill Streak 8 | 3 2 8 6 2 3 Combat Bots Only 8 | . 2 8 6 1 3 Max Kills in Single Turn 2 | 1 1 2 2 1 1 Gunslinging 1 | . . 1 1 . . Exploded 1 | . . 1 1 . . Melee 1 | . . . 1 . . Uniques/NPCs Destroyed . | . . . . . . Combat | -11 -10 -9 -8 -7 -7 -------- Run | Yrd Mat Mat Mat Fac Low Hostile Shots Fired 435 | . 41 68 161 54 111 Missed 145 | . 10 20 41 27 47 Hits 290 | . 31 48 120 27 64 Melee 1 | . . . 1 . . Projectile 289 | . 31 48 119 27 64 Critical Strikes 7 | . . . 4 . 3 Damage Taken 3958 | . 245 611 1841 202 1059 Core 1042 | . 28 89 223 62 640 Absorbed by Shields . | . . . . . . Core Remaining (%) 81 | 100 88 77 59 . . Volleys Fired 138 | 17 12 41 57 . 11 Largest 4 | 2 2 4 4 . 1 Hottest 168 | 60 60 168 152 . 60 Shots Fired 348 | 34 24 139 140 . 11 Gun 271 | 34 24 115 98 . . Cannon 77 | . . 24 42 . 11 Launcher . | . . . . . . Special . | . . . . . . Kinetic 183 | 17 12 60 94 . . Thermal 118 | 17 12 51 27 . 11 Explosive . | . . . . . . Electromagnetic 47 | . . 28 19 . . Robot Hit Streak 11 | 5 4 11 9 . 5 Robot Miss Streak 5 | 3 2 5 3 . 1 Penetration Max 1 | . . . 1 . . Secondary Targets 7 | . 1 3 3 . . Max Gunslinging Chain 1 | . 1 1 1 . . Shots Hit Robots 267 | 21 15 81 133 8 9 Core Hits 134 | 11 7 47 63 1 5 Critical Kills 2 | . . 1 1 . . Critical Parts Destroyed 9 | . . . 7 2 . Critical Strikes 20 | . . 3 15 2 . Burn 2 | . . 2 . . . Destroy 1 | . . 1 . . . Blast 5 | . . . 5 . . Smash 10 | . . . 8 2 . Sever 2 | . . . 2 . . Melee Attacks 59 | . . . 50 9 . Impact 41 | . . . 32 9 . Slashing 18 | . . . 18 . . Piercing . | . . . . . . Sneak Attacks 14 | . . . 13 1 . Combat Hostiles . | . . . . . . Follow-up Attacks 6 | . . . 6 . . Damage Inflicted 6914 | 184 144 1446 4569 363 208 Guns 2479 | 184 144 1088 1063 . . Cannons 1932 | . . 243 1482 . 207 Explosions 160 | . . 115 45 . . Melee 2342 | . . . 1979 363 . Ramming 1 | . . . . . 1 Kinetic 2707 | 86 69 519 2033 . . Thermal 1328 | 98 75 553 395 . 207 Explosive . | . . . . . . Electromagnetic 536 | . . 374 162 . . Impact 1774 | . . . 1411 363 . Slashing 568 | . . . 568 . . Piercing . | . . . . . . Highest Corruption . | . . . . . . Average Corruption . | . . . . . . Corruption Purged . | . . . . . . Corruption Blocked . | . . . . . . Overload Shots . | . . . . . . Overflow Damage 893 | . . . 700 175 18 Projectiles 60 | . . . 42 . 18 Explosions . | . . . . . . Melee 833 | . . . 658 175 . Knockbacks 10 | . . . 10 . . Impact 5 | . . . 5 . . Kinetic 3 | . . . 3 . . Secondary 2 | . . . 2 . . Self-Inflicted Damage 32 | . . 32 . . . Shots 1 | . . 1 . . . Rammed 1 | . . . . . 1 Targets Rammed 1 | . . . . . 1 Kicked . | . . . . . . Crushed . | . . . . . . Highest Temperature 350 | 40 60 350 210 1 . Average Temperature 84 | 15 25 116 68 1 . Received Heat Transfer 1086 | . 30 210 693 54 99 Effects 4 | . . 4 . . . Energy Bleed 1 | . . 1 . . . Interference 3 | . . 3 . . . Siege Activations . | . . . . . . Martial Activations . | . . . . . . Shielding Activations . | . . . . . . Robots Disrupted . | . . . . . . Combat Hostiles . | . . . . . . Robots Corrupted 6 | . . . 5 1 . Combat Hostiles 3 | . . . 2 1 . Parts Fried 8 | . . 1 5 2 . Impact Corruptions 26 | . . . 21 5 . Robots Melted . | . . . . . . Combat Hostiles . | . . . . . . Parts Melted 2 | . . . 1 . 1 Heat Transferred 2799 | 225 175 1387 679 . 333 Parts Sabotaged . | . . . . . . Parts Stolen . | . . . . . . Parts Stripped . | . . . . . . Power Chain Reactions 4 | . . 2 2 . . Alert | -11 -10 -9 -8 -7 -7 ------- Run | Yrd Mat Mat Mat Fac Low Maximum Alert Level 3 | . . 1 3 1 . Low Security (%) 44 | 100 100 63 16 . . Level 1 20 | . . 36 12 100 . Level 2 34 | . . . 70 . . Level 3 . | . . . . . . Level 4 . | . . . . . . Level 5 . | . . . . . . High Security . | . . . . . . Max Security . | . . . . . . Peak Influence 709 | 10 50 365 709 350 . Initial 310 | . . . 141 310 . Average 294 | 1 13 139 492 324 . Influence Increases 2065 | 30 75 621 1169 95 75 Destroy 0b10 Robot/C 1280 | . 60 440 700 20 60 Destroy 0b10 Robot/NC 145 | 30 . 40 70 5 . Destroy Leader 318 | . 10 114 184 10 . Successful Hack 5 | . 5 . . . . Disable Machine 15 | . . . 15 . . Anti-Garrison Action 150 | . . . 150 . . Destroy Structure 32 | . . 12 20 . . Partial Spotted 15 | . . . . 15 . Lose Combat Pursuer 105 | . . 15 30 45 15 Influence Decreases 2006 | 30 75 286 820 454 341 Entered New Map 689 | . . . 194 374 121 Time Decay 1057 | 30 75 266 506 50 130 Lost Part 260 | . . 20 120 30 90 Squads Dispatched 12 | . 1 3 7 1 . Investigation . | . . . . . . Extermination . | . . . . . . Reinforcement 9 | . 1 3 4 1 . Assault 2 | . . . 2 . . Garrison 1 | . . . 1 . . Intercept . | . . . . . . Searches Triggered . | . . . . . . Construction Impeded 1 | . . . 1 . . Haulers Reinforced . | . . . . . . Active Scanning Responses . | . . . . . . Cargo Convoy Interrupts . | . . . . . . Stealth | -11 -10 -9 -8 -7 -7 --------- Run | Yrd Mat Mat Mat Fac Low Distress Signals 8 | . . 3 5 . . Communications Jammed . | . . . . . . Distress Signals . | . . . . . . Times Spotted 105 | . 7 29 54 6 9 Peak Tracking Total 7 | . 3 6 7 4 5 Tactical Retreats 5 | . . 1 2 1 1 Traps | -11 -10 -9 -8 -7 -7 ------- Run | Yrd Mat Mat Mat Fac Low Traps Triggered . | . . . . . . Indirectly . | . . . . . . Trap Hack Attempts . | . . . . . . Triggered . | . . . . . . Disarmed . | . . . . . . Reprogrammed . | . . . . . . Reused . | . . . . . . Traps Extracted . | . . . . . . Installed . | . . . . . . Triggered . | . . . . . . Machines | -11 -10 -9 -8 -7 -7 ---------- Run | Yrd Mat Mat Mat Fac Low Machines Disabled 2 | . . . 2 . . Max in Single Turn 2 | . . . 2 . . Garrison Access 1 | . . . 1 . . Machines Repaired . | . . . . . . Machines Dismantled . | . . . . . . Machines Sabotaged . | . . . . . . Overloaded Fab Kills . | . . . . . . Hacking | -11 -10 -9 -8 -7 -7 --------- Run | Yrd Mat Mat Mat Fac Low Machines Accessed 3 | . 1 1 1 . . Terminals 3 | . 1 1 1 . . Fabricators . | . . . . . . Repair Stations . | . . . . . . Recycling Units . | . . . . . . Scanalyzers . | . . . . . . Garrison Access . | . . . . . . Total Hacks 7 | . 1 3 3 . . Successful 3 | . 1 1 1 . . Failed 4 | . . 2 2 . . Catastrophic 1 | . . . 1 . . Database Lockouts . | . . . . . . Manual 7 | . 1 3 3 . . Terminals 7 | . 1 3 3 . . Fabricators . | . . . . . . Repair Stations . | . . . . . . Recycling Units . | . . . . . . Scanalyzers . | . . . . . . Garrison Access . | . . . . . . Terminal Hacks . | . . . . . . Fabricator Hacks . | . . . . . . Repair Station Hacks . | . . . . . . Recycling Unit Hacks . | . . . . . . Scanalyzer . | . . . . . . Garrison Access Hacks . | . . . . . . Unauthorized Hacks 3 | . 1 1 1 . . Terminals 3 | . 1 1 1 . . Botnet 3 | . 1 1 1 . . Fabricators . | . . . . . . Repair Stations . | . . . . . . Recycling Units . | . . . . . . Scanalyzers . | . . . . . . Garrison Access . | . . . . . . Data Cores Recovered . | . . . . . . Used . | . . . . . . Hacking Detections 2 | . . 1 1 . . Full Trace Events . | . . . . . . Feedback Events . | . . . . . . Feedback Blocked . | . . . . . . Robot Schematics Acquired . | . . . . . . Robots Built . | . . . . . . Authchips . | . . . . . . Time . | . . . . . . Total Robot Build Rating . | . . . . . . Part Schematics Acquired . | . . . . . . Parts Built . | . . . . . . Authchips . | . . . . . . Time . | . . . . . . Total Part Build Rating . | . . . . . . Part Studies Acquired . | . . . . . . Parts Repaired . | . . . . . . Time . | . . . . . . Parts Recycled . | . . . . . . Recycled Matter . | . . . . . . Retrieved Matter . | . . . . . . Retrieved Components . | . . . . . . Parts Scanalyzed . | . . . . . . Part Schematics Acquired . | . . . . . . Parts Damaged . | . . . . . . Bothacking | -11 -10 -9 -8 -7 -7 ------------ Run | Yrd Mat Mat Mat Fac Low Used RIF Installer . | . . . . . . Robots Hacked . | . . . . . . Non-combat . | . . . . . . Combat . | . . . . . . Robot Hacks Applied . | . . . . . . Relay Couplers Released 1 | . . . 1 . . Machine Destruction 1 | . . . 1 . . Fabnet Peak Effective % . | . . . . . . Robots Rewired . | . . . . . . Allies Hacked . | . . . . . . Hacks Repelled . | . . . . . . Allies | -11 -10 -9 -8 -7 -7 -------- Run | Yrd Mat Mat Mat Fac Low Total Allies . | . . . . . . Largest Group . | . . . . . . Highest-Rated Group . | . . . . . . Highest-Rated Ally . | . . . . . . Total Orders . | . . . . . . Ally Attacks . | . . . . . . Total Damage . | . . . . . . Kills . | . . . . . . Allies Corrupted . | . . . . . . Allies Melted . | . . . . . . Intel | -11 -10 -9 -8 -7 -7 ------- Run | Yrd Mat Mat Mat Fac Low Active Infowar (turns) 2111 | 16 248 415 1360 72 . Terrain 1432 | . . . 1360 72 . Seismic 679 | 16 248 415 . . . Robot Analysis Total . | . . . . . . Derelict Logs Recovered 2 | . . . . . 2 Drone Launches . | . . . . . . Drone Recoveries . | . . . . . . Exploration | -11 -10 -9 -8 -7 -7 ------------- Run | Yrd Mat Mat Mat Fac Low Turns Passed 3069 | 268 248 803 1361 117 272 Spaces Moved 1944 | 133 127 382 609 247 446 Core 52 | 4 . . . . 48 Treads 1250 | 129 127 382 609 3 . Legs . | . . . . . . Wheels 2 | . . . . . 2 Hover . | . . . . . . Flight 640 | . . . . 244 396 Fastest Speed 26 | 50 160 160 160 26 27 Average Speed 120 | 156 160 160 166 29 53 Slowest Speed 250 | 160 160 160 240 165 250 Overloaded Moves . | . . . . . . Propulsion Burnouts . | . . . . . . Robots Hopped . | . . . . . . Potential Cave-ins . | . . . . . . Cave-ins Triggered . | . . . . . . Exploration Rate (%) 34 | 6 25 40 62 5 67 Regions Visited 5 Branch Regions 1 Pre-discovered Areas . | . . . . . . Known Exits Taken . | . . . . . . Unknown Exits Taken 5 | 1 1 1 1 1 . Scrap Searched 1 | . . . . . 1 Spaces Dug . | . . . . . . Terrain Destroyed 26 | . . 9 17 . . Melee . | . . . . . . Projectile 11 | . . . 11 . . AOE 15 | . . 9 6 . . Terrain Rammed . | . . . . . . Walls Destroyed . | . . . . . . Machines Disabled . | . . . . . . Actions | -11 -10 -9 -8 -7 -7 --------- Run | Yrd Mat Mat Mat Fac Low Total 2286 | 159 150 479 756 273 469 Wait 53 | . 9 35 6 . 3 Move 1939 | 132 126 381 608 246 446 Hop . | . . . . . . Pick Up 18 | 3 3 3 9 . . Fast Attach 28 | 7 . 7 11 3 . Attach 13 | . . 1 5 5 2 Detach 7 | . . 1 1 4 1 Swap 17 | . . 4 8 2 3 Drop 25 | . . 6 13 4 2 Fire 138 | 17 12 41 57 . 11 Melee 47 | . . . 38 9 . Ram 1 | . . . . . 1 Kick . | . . . . . . Crush . | . . . . . . Escape Stasis . | . . . . . . Rewire . | . . . . . . Trap . | . . . . . . Miscellaneous . | . . . . . . Route ------- -11/Scrapyard -10/Materials (discovered 2 exits: *Mat / [*Min]) -9/Materials -8/Materials -7/Factory -7/Lower Caves History --------- Turn | Location | Event 59 | -11/Scrapyard | Discovered new exit (range 16) 269 | -11/Scrapyard | Entered Materials 269 | -10/Materials | Discovered new exit (range 8) 312 | -10/Materials | Build established: Mutant 478 | -10/Materials | Discovered new exit (range 16) 517 | -10/Materials | Entered another Materials area 517 | -9/Materials | Evolved 2 slots: Weapon x2 1005 | -9/Materials | Destroyed 8 combat bots 1253 | -9/Materials | Discovered new exit (range 5) 1320 | -9/Materials | Entered another Materials area 1320 | -8/Materials | Evolved 2 slots: Utility x2 1622 | -8/Materials | Build established: Scavenger-Skirmisher 1662 | -8/Materials | Garrison activated, responded to threat 1928 | -8/Materials | Lost 3 parts (1p1n1w) 1991 | -8/Materials | Lost 3 parts (1n2w) 2621 | -8/Materials | Lost 3 parts (2p1u) 2633 | -8/Materials | Discovered new exit (range 12) 2681 | -8/Materials | Entered Factory 2681 | -7/Factory | Evolved 2 slots: Propulsion x2 2742 | -7/Factory | Discovered new exit (range 13) 2792 | -7/Factory | Lost 3 parts (1n2u) 2798 | -7/Factory | Entered Lower Caves 2814 | -7/Lower Caves | Learned Factory emergency access door positions 2856 | -7/Lower Caves | Attracted the attention of an 0b10 checkpoint 2922 | -7/Lower Caves | Learned location of 1 exit from Factory 3011 | -7/Lower Caves | Spotted B-75 Beast 3046 | -7/Lower Caves | Core integrity fell below 50% 3055 | -7/Lower Caves | Core integrity fell below 20% 3070 | -7/Lower Caves | Destroyed by S-27 Virus with Autogun Last Messages --------------- 02971_ Acquired 4 matter. 03023_ 2I-4V7(k) breaks down the debris. 03025_ Acquired 3 matter. 03028_ Acquired 5 matter. 03032_ VTOL Module destroyed. 03032_ Knocked back. 03038_ VTOL Module destroyed. 03039_ Knocked back. 03039_ Flight Unit destroyed. 03041_ 2I-4V7(k) breaks down the debris. 03041_ Acquired 5 matter. 03042_ Melee Analysis Suite destroyed. 03042_ Knocked back. 03042_ Com. Wheel destroyed. 03042_ Critical hit (Destroy). 03042_ Power Maul destroyed. 03045_ Imp. Deuterium Engine destroyed. 03048_ 2I-4V7(k) destroyed. 03050_ Imp. Cooling System destroyed. 03070_ Slammed into S-27 Virus. Map ----- +----------------------------------------------------+ | | | | | ??????????????????????????????????????????????? | | ??????????????????????????????????????????????? | | ??????????????????????????????????????????????? | | ??????????????????????????????????????????????? | | ??????????????????????????????????????????????? | | ??????????????????????????????????????????????? | | ??????????????????????????????????????????????? | | ??????????????????????????????????????????????? | | ??????????????????????????????????????????????? | | ??????????????????????????????????????????????? | | ??????????????????????????????????????????????? | | ??????????????????????????????????????????????? | | ??????????????????????????????????????????????? | | ??????????????????????????????????????????????? | | ??????????????????#####????????????????######?? | | ?????????????????## ####????????????## #?? | | ???????????????### ##??????????## #### | | ??????????????## #??????????# % #?# | | ??????????????# #??????????#% %#### | | ??????????????# ####??????????# % ###% % | | ??????????????## #?#######?????# #"# # | | ???????????????### ## #?????## " | | ?????????????????## s #??????## # | | ???????????????##?###s@ ##???????# # | | ??????????????## #?##s s ##????????## "# | | ??????????????# ## #?????????#" % ## | | ???????????????# #????????## | | ???????????????## #?####???# % | | ????????????????# #### ##### | | ???????????????## #?# % | | ???????????????# #### | | ??????????????## ######?# ## ## | | ??????????????# ##?????# #?##?# % | | ??????????????# ##?????# ###### ### | | ??????????????## ###???# ## "#? | | ???????????????# #??## % ## | | ??????????????# #### #### # | | ??????????????# #???## ## # "# | | ??????????????## #?##### ##### % | | ???????????????##### #???# | | ???????????????# #??# | | ???????????????# ###??# | | ???????????????# ### #???## | | ???????????????# ???# ##????###### | | ????????????????????## % ##??????????? | | ?????????????????????## ##???????????? | | ??????????????????????# ## #????????????? | | ??????????????????????# ########????????????? | +----------------------------------------------------+ Best States ------------- Heat Dissipation 61 Energy Generation 16 Energy Capacity 290 Matter Stores 300 Matter Capacity 300 Sight Range 16 Terrain Scan Range 16 Terrain Scan Density 210 Evasion (%) 64 Targeting Accuracy 6 Melee Accuracy 10 Recoil Reduction 2 Item Schematics ----------------- None Robot Schematics ------------------ None Fabricated ------------ Nothing Repaired ---------- Nothing Studied --------- None Alien Tech Used ----------------- None Achievements -------------- None Challenges ------------ None Game ------ Seed ShadeRiotDiverter Manual? 0 Play Time 00:25:10 Cumulative 120.6 hours Start 2026.07.14 @ 00:17:54 End 2026.07.14 @ 00:41:19 Sessions 1 Manual Loads 0 Difficulty Rogue Special Mode None Game No. 256 Rogue 256 Adventurer 0 Explorer 0 Win Type - Total 0 Types 0/0/0/0/0/0/0/0/0/0 Lore% 52 Gallery% 52 Achievement% 41 Wizard Run 0 Options --------- Layout 2 ASCII 0 Keyboard 1 Movement Arrows Keybinds 0 Fullscreen 1 Font 24/Smallcaps Map View 50x44 Zoom Use 0% Tactical HUD 1 Map Filters NONE Filters NONE Steam 1 RUN: cb152aca-546c-43c1-8cae-65a1223c78d7